[Event "Titled Tuesday Blitz December 20 Early 2022"]
[White "pedromartinez91"]
[Black "Rostolis, Riccardo"]
[BlackFideId "819948"]
[WhiteElo "2488"]
[BlackElo "1968"]
[Result "1-0"]
[Round "06"]
[TimeControl "180+2"]
[Date "2022.12.20"]
[WhiteClock "0:00:29"]
[BlackClock "0:00:01"]

1. d4 {[%clk 0:03:00]}  f5 {[%clk 0:02:59]} 2. e4 {[%clk 0:02:53]}  fxe4 {[%clk 0:03:00]} 3. Nc3 {[%clk 0:02:52]}  Nf6 {[%clk 0:02:56]} 4. Bg5 {[%clk 0:02:47]}  c6 {[%clk 0:02:56]} 5. f3 {[%clk 0:02:40]}  d5 {[%clk 0:02:55]} 6. Qe2 {[%clk 0:02:32]}  Bf5 {[%clk 0:02:40]} 7. g4 {[%clk 0:02:26]}  Bg6 {[%clk 0:02:36]} 8. h4 {[%clk 0:02:25]}  h6 {[%clk 0:02:29]} 9. Bxf6 {[%clk 0:02:24]}  exf6 {[%clk 0:02:28]} 10. fxe4 {[%clk 0:02:24]}  dxe4 {[%clk 0:02:27]} 11. Nxe4 {[%clk 0:02:12]}  Bxe4 {[%clk 0:02:02]} 12. Qxe4+ {[%clk 0:02:12]}  Qe7 {[%clk 0:02:03]} 13. Bd3 {[%clk 0:02:10]}  Nd7 {[%clk 0:01:59]} 14. Nf3 {[%clk 0:02:10]}  O-O-O {[%clk 0:01:57]} 15. O-O-O {[%clk 0:02:10]}  Qxe4 {[%clk 0:01:52]} 16. Bxe4 {[%clk 0:02:11]}  Nb6 {[%clk 0:01:49]} 17. Bf5+ {[%clk 0:02:07]}  Kc7 {[%clk 0:01:47]} 18. Rhe1 {[%clk 0:02:01]}  Bd6 {[%clk 0:01:46]} 19. Bg6 {[%clk 0:02:02]}  Nd5 {[%clk 0:01:40]} 20. c4 {[%clk 0:01:53]}  Nf4 {[%clk 0:01:32]} 21. Bf5 {[%clk 0:01:53]}  Rhe8 {[%clk 0:01:24]} 22. h5 {[%clk 0:01:42]}  Bb4 {[%clk 0:01:08]} 23. Rxe8 {[%clk 0:01:22]}  Rxe8 {[%clk 0:01:09]} 24. a3 {[%clk 0:01:22]}  Bd6 {[%clk 0:01:04]} 25. Re1 {[%clk 0:01:09]}  Rxe1+ {[%clk 0:01:00]} 26. Nxe1 {[%clk 0:01:08]}  Ne2+ {[%clk 0:01:01]} 27. Kd2 {[%clk 0:01:08]}  Nxd4 {[%clk 0:01:01]} 28. Bg6 {[%clk 0:01:04]}  c5 {[%clk 0:00:49]} 29. Kd3 {[%clk 0:01:03]}  Nc6 {[%clk 0:00:49]} 30. Ke4 {[%clk 0:01:01]}  Ne5 {[%clk 0:00:48]} 31. b3 {[%clk 0:01:01]}  Nxg4 {[%clk 0:00:47]} 32. Nd3 {[%clk 0:00:55]}  Ne5 {[%clk 0:00:38]} 33. Nf4 {[%clk 0:00:55]}  Nxg6 {[%clk 0:00:37]} 34. Nxg6 {[%clk 0:00:54]}  Kd7 {[%clk 0:00:33]} 35. Kf5 {[%clk 0:00:46]}  a6 {[%clk 0:00:27]} 36. a4 {[%clk 0:00:43]}  b6 {[%clk 0:00:13]} 37. Nh4 {[%clk 0:00:43]}  Bg3 {[%clk 0:00:11]} 38. Nf3 {[%clk 0:00:43]}  Kd6 {[%clk 0:00:09]} 39. Nd2 {[%clk 0:00:44]}  Be1 {[%clk 0:00:08]} 40. Ne4+ {[%clk 0:00:45]}  Ke7 {[%clk 0:00:08]} 41. Kg6 {[%clk 0:00:34]}  Kf8 {[%clk 0:00:08]} 42. Nd6 {[%clk 0:00:34]}  Ke7 {[%clk 0:00:03]} 43. Nf5+ {[%clk 0:00:34]}  Ke6 {[%clk 0:00:03]} 44. Nxg7+ {[%clk 0:00:34]}  Ke5 {[%clk 0:00:04]} 45. Nf5 {[%clk 0:00:35]}  Bd2 {[%clk 0:00:04]} 46. Nxh6 {[%clk 0:00:30]}  Be3 {[%clk 0:00:01]} 47. Ng4+ {[%clk 0:00:29]} 1-0


[Site "https://www.chess.com"]

[Event "Titled Tuesday Blitz December 20 Early 2022"]
[White "rasmussvane"]
[Black "GoltsevDmitry2000"]
[WhiteElo "2949"]
[BlackElo "2739"]
[Result "1-0"]
[Round "06"]
[TimeControl "180+2"]
[Date "2022.12.20"]
[WhiteClock "0:01:05"]
[BlackClock "0:00:31"]

1. Nf3 {[%clk 0:03:00]}  Nf6 {[%clk 0:02:59]} 2. g3 {[%clk 0:03:01]}  g6 {[%clk 0:02:59]} 3. Bg2 {[%clk 0:03:02]}  Bg7 {[%clk 0:03:00]} 4. O-O {[%clk 0:03:02]}  O-O {[%clk 0:03:00]} 5. d4 {[%clk 0:03:03]}  d5 {[%clk 0:03:00]} 6. c4 {[%clk 0:03:01]}  c6 {[%clk 0:03:01]} 7. Qb3 {[%clk 0:02:59]}  Qb6 {[%clk 0:02:58]} 8. Nc3 {[%clk 0:02:59]}  dxc4 {[%clk 0:02:56]} 9. Qxc4 {[%clk 0:02:59]}  Nbd7 {[%clk 0:02:50]} 10. e4 {[%clk 0:02:57]}  e6 {[%clk 0:02:38]} 11. Qe2 {[%clk 0:02:55]}  a5 {[%clk 0:02:31]} 12. Rd1 {[%clk 0:02:49]}  Qa6 {[%clk 0:02:31]} 13. Qc2 {[%clk 0:02:48]}  b5 {[%clk 0:02:29]} 14. Be3 {[%clk 0:02:48]}  Bb7 {[%clk 0:02:28]} 15. Rac1 {[%clk 0:02:44]}  Rac8 {[%clk 0:02:28]} 16. Ne5 {[%clk 0:02:36]}  Nxe5 {[%clk 0:02:26]} 17. dxe5 {[%clk 0:02:37]}  Ng4 {[%clk 0:02:26]} 18. Bc5 {[%clk 0:02:37]}  Rfd8 {[%clk 0:02:24]} 19. f4 {[%clk 0:02:27]}  Bf8 {[%clk 0:02:22]} 20. Ne2 {[%clk 0:02:23]}  Bxc5+ {[%clk 0:02:15]} 21. Qxc5 {[%clk 0:02:24]}  b4 {[%clk 0:02:15]} 22. Bf3 {[%clk 0:02:25]}  h5 {[%clk 0:02:12]} 23. h3 {[%clk 0:02:20]}  Nh6 {[%clk 0:02:12]} 24. Kf2 {[%clk 0:02:20]}  Qb5 {[%clk 0:02:11]} 25. Qxb5 {[%clk 0:02:15]}  cxb5 {[%clk 0:02:12]} 26. Rxd8+ {[%clk 0:02:15]}  Rxd8 {[%clk 0:02:12]} 27. Ke3 {[%clk 0:02:14]}  Rc8 {[%clk 0:02:05]} 28. Rxc8+ {[%clk 0:02:12]}  Bxc8 {[%clk 0:02:06]} 29. Kd4 {[%clk 0:02:13]}  Bd7 {[%clk 0:01:56]} 30. Kc5 {[%clk 0:02:12]}  Kf8 {[%clk 0:01:54]} 31. Nd4 {[%clk 0:02:10]}  Ng8 {[%clk 0:01:47]} 32. Nxb5 {[%clk 0:02:07]}  Ne7 {[%clk 0:01:39]} 33. Nd6 {[%clk 0:02:07]}  Nc6 {[%clk 0:01:34]} 34. Be2 {[%clk 0:01:55]}  Ke7 {[%clk 0:01:29]} 35. Bb5 {[%clk 0:01:54]}  Nb8 {[%clk 0:01:26]} 36. Bc4 {[%clk 0:01:48]}  Nc6 {[%clk 0:01:22]} 37. b3 {[%clk 0:01:48]}  f6 {[%clk 0:01:17]} 38. exf6+ {[%clk 0:01:47]}  Kxf6 {[%clk 0:01:18]} 39. e5+ {[%clk 0:01:48]}  Ke7 {[%clk 0:01:18]} 40. h4 {[%clk 0:01:47]}  Kd8 {[%clk 0:01:12]} 41. Bd3 {[%clk 0:01:45]}  Ne7 {[%clk 0:01:08]} 42. Kb6 {[%clk 0:01:42]}  a4 {[%clk 0:01:07]} 43. Kc5 {[%clk 0:01:41]}  Nd5 {[%clk 0:01:00]} 44. Bxg6 {[%clk 0:01:36]}  Nc3 {[%clk 0:00:55]} 45. bxa4 {[%clk 0:01:22]}  Nxa2 {[%clk 0:00:53]} 46. a5 {[%clk 0:01:22]}  b3 {[%clk 0:00:47]} 47. a6 {[%clk 0:01:21]}  Kc7 {[%clk 0:00:39]} 48. a7 {[%clk 0:01:18]}  Bc6 {[%clk 0:00:39]} 49. Be4 {[%clk 0:01:15]}  b2 {[%clk 0:00:37]} 50. Bxc6 {[%clk 0:01:11]}  b1=Q {[%clk 0:00:35]} 51. Ne8+ {[%clk 0:01:04]}  Kd8 {[%clk 0:00:33]} 52. a8=Q+ {[%clk 0:01:05]}  Ke7 {[%clk 0:00:33]} 53. Qa7+ {[%clk 0:01:05]}  Kf8 {[%clk 0:00:31]} 54. Qg7# {[%clk 0:01:05]} 1-0


[Site "https://www.chess.com"]

[Event "Titled Tuesday Blitz December 20 Early 2022"]
[White "sofaceindisguise"]
[Black "Djeno, Drago"]
[BlackFideId "14400421"]
[WhiteElo "2741"]
[BlackElo "2223"]
[Result "1-0"]
[Round "06"]
[TimeControl "180+2"]
[Date "2022.12.20"]
[WhiteClock "0:00:24"]
[BlackClock "0:00:02"]

1. e4 {[%clk 0:02:59]}  c5 {[%clk 0:02:59]} 2. Nf3 {[%clk 0:02:59]}  Nc6 {[%clk 0:02:58]} 3. Bb5 {[%clk 0:02:59]}  g6 {[%clk 0:02:58]} 4. Bxc6 {[%clk 0:02:59]}  bxc6 {[%clk 0:02:56]} 5. d3 {[%clk 0:03:00]}  Bg7 {[%clk 0:02:57]} 6. O-O {[%clk 0:03:00]}  e5 {[%clk 0:02:57]} 7. Nbd2 {[%clk 0:02:55]}  Ne7 {[%clk 0:02:54]} 8. Nc4 {[%clk 0:02:55]}  d6 {[%clk 0:02:55]} 9. a3 {[%clk 0:02:49]}  O-O {[%clk 0:02:53]} 10. b4 {[%clk 0:02:49]}  cxb4 {[%clk 0:02:50]} 11. axb4 {[%clk 0:02:50]}  Be6 {[%clk 0:02:51]} 12. Na5 {[%clk 0:02:49]}  h6 {[%clk 0:02:45]} 13. Bd2 {[%clk 0:02:43]}  f5 {[%clk 0:02:36]} 14. c4 {[%clk 0:02:31]}  fxe4 {[%clk 0:02:35]} 15. dxe4 {[%clk 0:02:30]}  g5 {[%clk 0:02:24]} 16. Ne1 {[%clk 0:02:18]}  Qd7 {[%clk 0:02:21]} 17. Nc2 {[%clk 0:02:18]}  d5 {[%clk 0:02:11]} 18. exd5 {[%clk 0:02:14]}  cxd5 {[%clk 0:02:12]} 19. cxd5 {[%clk 0:02:14]}  Nxd5 {[%clk 0:02:10]} 20. Ne3 {[%clk 0:02:14]}  Rad8 {[%clk 0:02:03]} 21. Nxd5 {[%clk 0:02:14]}  Bxd5 {[%clk 0:02:04]} 22. Be3 {[%clk 0:02:13]}  Qf5 {[%clk 0:01:45]} 23. Qh5 {[%clk 0:02:00]}  Qe4 {[%clk 0:01:39]} 24. Qh3 {[%clk 0:01:58]}  Qxb4 {[%clk 0:01:33]} 25. Rfc1 {[%clk 0:01:50]}  a6 {[%clk 0:01:18]} 26. Bc5 {[%clk 0:01:45]}  Qe4 {[%clk 0:01:12]} 27. Bxf8 {[%clk 0:01:44]}  Rxf8 {[%clk 0:01:10]} 28. Qg3 {[%clk 0:01:39]}  Qf5 {[%clk 0:00:59]} 29. Nc4 {[%clk 0:01:36]}  Ba8 {[%clk 0:00:31]} 30. Ne3 {[%clk 0:01:28]}  Qd3 {[%clk 0:00:31]} 31. Rd1 {[%clk 0:01:21]}  Qe2 {[%clk 0:00:30]} 32. Re1 {[%clk 0:01:18]}  Qd2 {[%clk 0:00:31]} 33. Rad1 {[%clk 0:01:17]}  Qa2 {[%clk 0:00:28]} 34. Qg4 {[%clk 0:01:13]}  Qxf2+ {[%clk 0:00:25]} 35. Kh1 {[%clk 0:01:13]}  Qf4 {[%clk 0:00:24]} 36. Qe6+ {[%clk 0:01:06]}  Kh8 {[%clk 0:00:25]} 37. Nd5 {[%clk 0:01:06]}  Qf2 {[%clk 0:00:21]} 38. h3 {[%clk 0:00:50]}  e4 {[%clk 0:00:21]} 39. Qxe4 {[%clk 0:00:48]}  Qc5 {[%clk 0:00:16]} 40. Qe3 {[%clk 0:00:38]}  Qc6 {[%clk 0:00:15]} 41. Re2 {[%clk 0:00:37]}  Rd8 {[%clk 0:00:15]} 42. Red2 {[%clk 0:00:37]}  a5 {[%clk 0:00:13]} 43. Kg1 {[%clk 0:00:34]}  Re8 {[%clk 0:00:12]} 44. Qf2 {[%clk 0:00:34]}  a4 {[%clk 0:00:09]} 45. Nb6 {[%clk 0:00:31]}  Rf8 {[%clk 0:00:08]} 46. Qe3 {[%clk 0:00:30]}  Bb7 {[%clk 0:00:05]} 47. Rd6 {[%clk 0:00:30]}  Qc2 {[%clk 0:00:04]} 48. R6d2 {[%clk 0:00:29]}  Qc6 {[%clk 0:00:04]} 49. Nd5 {[%clk 0:00:28]}  a3 {[%clk 0:00:03]} 50. Qxa3 {[%clk 0:00:28]}  Rd8 {[%clk 0:00:03]} 51. Qe3 {[%clk 0:00:28]}  Qd6 {[%clk 0:00:02]} 52. Nf6 {[%clk 0:00:24]} 1-0


[Site "https://www.chess.com"]

[Event "Titled Tuesday Blitz December 20 Early 2022"]
[White "tortorchess"]
[Black "Sunny_Star"]
[WhiteElo "1836"]
[BlackElo "2241"]
[Result "1-0"]
[Round "06"]
[TimeControl "180+2"]
[Date "2022.12.20"]
[WhiteClock "0:00:44"]
[BlackClock "0:00:02"]

1. d4 {[%clk 0:02:58]}  Nf6 {[%clk 0:02:59]} 2. c4 {[%clk 0:02:57]}  g6 {[%clk 0:02:56]} 3. Nc3 {[%clk 0:02:56]}  Bg7 {[%clk 0:02:56]} 4. Bf4 {[%clk 0:02:55]}  d6 {[%clk 0:02:54]} 5. Nf3 {[%clk 0:02:54]}  Nbd7 {[%clk 0:02:53]} 6. e3 {[%clk 0:02:53]}  c6 {[%clk 0:02:52]} 7. Be2 {[%clk 0:02:53]}  Qc7 {[%clk 0:02:52]} 8. O-O {[%clk 0:02:52]}  O-O {[%clk 0:02:52]} 9. Rc1 {[%clk 0:02:52]}  Nh5 {[%clk 0:02:48]} 10. Bg5 {[%clk 0:02:51]}  Re8 {[%clk 0:02:24]} 11. b4 {[%clk 0:02:46]}  h6 {[%clk 0:02:22]} 12. Bh4 {[%clk 0:02:45]}  a5 {[%clk 0:01:59]} 13. b5 {[%clk 0:02:43]}  e5 {[%clk 0:01:55]} 14. dxe5 {[%clk 0:02:40]}  dxe5 {[%clk 0:01:51]} 15. a4 {[%clk 0:02:35]}  Nc5 {[%clk 0:01:43]} 16. e4 {[%clk 0:02:21]}  Nf4 {[%clk 0:01:40]} 17. bxc6 {[%clk 0:02:16]}  bxc6 {[%clk 0:01:38]} 18. Bg3 {[%clk 0:02:09]}  Rd8 {[%clk 0:01:28]} 19. Qc2 {[%clk 0:02:05]}  Nce6 {[%clk 0:01:28]} 20. Na2 {[%clk 0:01:47]}  c5 {[%clk 0:01:11]} 21. Rfd1 {[%clk 0:01:45]}  Bb7 {[%clk 0:00:44]} 22. Nc3 {[%clk 0:01:41]}  Nd4 {[%clk 0:00:37]} 23. Nxd4 {[%clk 0:01:38]}  cxd4 {[%clk 0:00:23]} 24. Nb5 {[%clk 0:01:30]}  Qc6 {[%clk 0:00:15]} 25. Bxf4 {[%clk 0:01:29]}  exf4 {[%clk 0:00:15]} 26. Bf3 {[%clk 0:01:28]}  Qc5 {[%clk 0:00:12]} 27. Qd3 {[%clk 0:01:24]}  Rac8 {[%clk 0:00:10]} 28. Qb3 {[%clk 0:01:20]}  Bc6 {[%clk 0:00:09]} 29. h3 {[%clk 0:01:08]}  Bf8 {[%clk 0:00:08]} 30. Bg4 {[%clk 0:01:07]}  Rb8 {[%clk 0:00:07]} 31. Bf3 {[%clk 0:01:03]}  Bg7 {[%clk 0:00:02]} 32. Rd3 {[%clk 0:01:01]}  Rd7 {[%clk 0:00:02]} 33. Rcd1 {[%clk 0:00:56]}  Rbd8 {[%clk 0:00:02]} 34. Qc2 {[%clk 0:00:48]}  Qe5 {[%clk 0:00:02]} 35. Qd2 {[%clk 0:00:45]}  Bxe4 {[%clk 0:00:02]} 36. Bxe4 {[%clk 0:00:45]}  Qxe4 {[%clk 0:00:02]} 37. Qxa5 {[%clk 0:00:44]} 1-0


[Site "https://www.chess.com"]

[Event "Titled Tuesday Blitz December 20 Early 2022"]
[White "tusplingher"]
[Black "Mileo, Miguelito"]
[BlackFideId "851108"]
[WhiteElo "2362"]
[BlackElo "1721"]
[Result "1-0"]
[Round "06"]
[TimeControl "180+2"]
[Date "2022.12.20"]
[WhiteClock "0:00:15"]
[BlackClock "0:00:51"]

1. e4 {[%clk 0:03:00]}  c5 {[%clk 0:02:58]} 2. Nf3 {[%clk 0:02:59]}  Qc7 {[%clk 0:02:58]} 3. d4 {[%clk 0:02:59]}  cxd4 {[%clk 0:02:58]} 4. Nxd4 {[%clk 0:02:59]}  a6 {[%clk 0:02:59]} 5. Nc3 {[%clk 0:02:59]}  Nf6 {[%clk 0:02:58]} 6. Be2 {[%clk 0:02:58]}  e5 {[%clk 0:02:57]} 7. Nf3 {[%clk 0:02:56]}  Bb4 {[%clk 0:02:57]} 8. O-O {[%clk 0:02:55]}  Bxc3 {[%clk 0:02:56]} 9. bxc3 {[%clk 0:02:55]}  Nxe4 {[%clk 0:02:56]} 10. Ba3 {[%clk 0:02:51]}  d6 {[%clk 0:02:45]} 11. Qd5 {[%clk 0:02:43]}  Nxc3 {[%clk 0:02:42]} 12. Qd2 {[%clk 0:02:38]}  Nxe2+ {[%clk 0:02:35]} 13. Qxe2 {[%clk 0:02:35]}  O-O {[%clk 0:02:25]} 14. Rad1 {[%clk 0:02:34]}  Rd8 {[%clk 0:02:25]} 15. Bxd6 {[%clk 0:02:27]}  Qb6 {[%clk 0:01:40]} 16. Bc5 {[%clk 0:02:17]}  Qa5 {[%clk 0:01:38]} 17. Qe1 {[%clk 0:01:53]}  Qc7 {[%clk 0:01:10]} 18. Qxe5 {[%clk 0:01:50]}  Qa5 {[%clk 0:01:08]} 19. Be7 {[%clk 0:01:25]}  Rxd1 {[%clk 0:01:03]} 20. Qxa5 {[%clk 0:01:23]}  Rxf1+ {[%clk 0:01:03]} 21. Kxf1 {[%clk 0:01:23]}  Nc6 {[%clk 0:01:04]} 22. Qc7 {[%clk 0:01:17]}  Be6 {[%clk 0:00:53]} 23. Qxb7 {[%clk 0:00:48]}  Bc4+ {[%clk 0:00:53]} 24. Ke1 {[%clk 0:00:33]}  Re8 {[%clk 0:00:53]} 25. Qxc6 {[%clk 0:00:31]}  Rxe7+ {[%clk 0:00:54]} 26. Kd2 {[%clk 0:00:29]}  Bb5 {[%clk 0:00:55]} 27. Qc8+ {[%clk 0:00:26]}  Re8 {[%clk 0:00:55]} 28. Qc5 {[%clk 0:00:26]}  f6 {[%clk 0:00:55]} 29. Nd4 {[%clk 0:00:25]}  Bf1 {[%clk 0:00:53]} 30. Qd5+ {[%clk 0:00:23]}  Kh8 {[%clk 0:00:52]} 31. Qf7 {[%clk 0:00:21]}  Rd8 {[%clk 0:00:52]} 32. Ke3 {[%clk 0:00:20]}  Bxg2 {[%clk 0:00:51]} 33. Ne6 {[%clk 0:00:19]}  Rg8 {[%clk 0:00:51]} 34. c4 {[%clk 0:00:18]}  Bc6 {[%clk 0:00:52]} 35. c5 {[%clk 0:00:18]}  Be8 {[%clk 0:00:52]} 36. Qe7 {[%clk 0:00:18]}  Bc6 {[%clk 0:00:52]} 37. Qd6 {[%clk 0:00:17]}  Rc8 {[%clk 0:00:51]} 38. Nd8 {[%clk 0:00:15]} 1-0


[Site "https://www.chess.com"]

[Event "Titled Tuesday Blitz December 20 Early 2022"]
[White "APOKALIPSA13"]
[Black "stepanosinovsky"]
[WhiteElo "2220"]
[BlackElo "2443"]
[Result "0-1"]
[Round "07"]
[TimeControl "180+2"]
[Date "2022.12.20"]
[WhiteClock "0:00:25"]
[BlackClock "0:01:37"]

1. e4 {[%clk 0:03:00]}  e5 {[%clk 0:02:59]} 2. d4 {[%clk 0:02:57]}  exd4 {[%clk 0:02:59]} 3. c3 {[%clk 0:02:56]}  d5 {[%clk 0:02:59]} 4. exd5 {[%clk 0:02:55]}  Qxd5 {[%clk 0:03:00]} 5. cxd4 {[%clk 0:02:55]}  Nc6 {[%clk 0:02:59]} 6. Nf3 {[%clk 0:02:55]}  Bg4 {[%clk 0:02:59]} 7. Be2 {[%clk 0:02:55]}  O-O-O {[%clk 0:02:59]} 8. Nc3 {[%clk 0:02:54]}  Qd7 {[%clk 0:02:58]} 9. d5 {[%clk 0:02:49]}  Bxf3 {[%clk 0:02:56]} 10. Bxf3 {[%clk 0:02:07]}  Ne5 {[%clk 0:02:54]} 11. Be2 {[%clk 0:02:05]}  Bb4 {[%clk 0:02:52]} 12. O-O {[%clk 0:01:32]}  Ne7 {[%clk 0:02:43]} 13. Be3 {[%clk 0:01:09]}  Bxc3 {[%clk 0:02:34]} 14. bxc3 {[%clk 0:01:07]}  Nxd5 {[%clk 0:02:34]} 15. Bd4 {[%clk 0:01:01]}  Rhe8 {[%clk 0:02:28]} 16. Qb3 {[%clk 0:00:49]}  Nf4 {[%clk 0:01:59]} 17. Bb5 {[%clk 0:00:42]}  Qg4 {[%clk 0:01:52]} 18. g3 {[%clk 0:00:29]}  Nh3+ {[%clk 0:01:39]} 19. Kg2 {[%clk 0:00:29]}  Nf4+ {[%clk 0:01:39]} 20. Kg1 {[%clk 0:00:27]}  Nf3+ {[%clk 0:01:37]} 21. Kh1 {[%clk 0:00:25]}  Qh3 {[%clk 0:01:37]} 0-1


[Site "https://www.chess.com"]

[Event "Titled Tuesday Blitz December 20 Early 2022"]
[White "Arora, Tashika"]
[Black "Witek, Tomasz"]
[WhiteFideId "459305"]
[BlackFideId "1130056"]
[WhiteElo "1896"]
[BlackElo "2000"]
[Result "1/2-1/2"]
[Round "07"]
[TimeControl "180+2"]
[Date "2022.12.20"]
[WhiteClock "0:00:10"]
[BlackClock "0:00:05"]

1. c4 {[%clk 0:03:00]}  e6 {[%clk 0:02:46]} 2. Nc3 {[%clk 0:02:59]}  d5 {[%clk 0:02:45]} 3. d4 {[%clk 0:02:59]}  Nf6 {[%clk 0:02:43]} 4. cxd5 {[%clk 0:02:58]}  exd5 {[%clk 0:02:43]} 5. Bg5 {[%clk 0:02:58]}  c6 {[%clk 0:02:43]} 6. e3 {[%clk 0:02:57]}  Nbd7 {[%clk 0:02:35]} 7. Bd3 {[%clk 0:02:54]}  Be7 {[%clk 0:02:35]} 8. Nge2 {[%clk 0:02:51]}  Nh5 {[%clk 0:02:34]} 9. Bxe7 {[%clk 0:02:50]}  Qxe7 {[%clk 0:02:35]} 10. Qd2 {[%clk 0:02:50]}  g6 {[%clk 0:02:21]} 11. f3 {[%clk 0:02:47]}  f5 {[%clk 0:01:56]} 12. O-O {[%clk 0:02:32]}  O-O {[%clk 0:01:53]} 13. e4 {[%clk 0:02:24]}  fxe4 {[%clk 0:01:49]} 14. fxe4 {[%clk 0:02:25]}  dxe4 {[%clk 0:01:49]} 15. Nxe4 {[%clk 0:02:20]}  Nb6 {[%clk 0:01:43]} 16. Rxf8+ {[%clk 0:02:17]}  Qxf8 {[%clk 0:01:43]} 17. Rf1 {[%clk 0:02:13]}  Qe7 {[%clk 0:01:42]} 18. N2c3 {[%clk 0:01:30]}  Bf5 {[%clk 0:01:30]} 19. Nc5 {[%clk 0:01:19]}  Bxd3 {[%clk 0:01:22]} 20. Qxd3 {[%clk 0:01:20]}  Re8 {[%clk 0:01:09]} 21. a4 {[%clk 0:01:08]}  Nf6 {[%clk 0:01:05]} 22. a5 {[%clk 0:01:03]}  Nbd5 {[%clk 0:01:05]} 23. Nxd5 {[%clk 0:01:01]}  Nxd5 {[%clk 0:01:05]} 24. Qb3 {[%clk 0:01:00]}  b6 {[%clk 0:01:04]} 25. axb6 {[%clk 0:00:55]}  axb6 {[%clk 0:01:05]} 26. Na4 {[%clk 0:00:53]}  Qh4 {[%clk 0:00:47]} 27. Qc4 {[%clk 0:00:41]}  Kg7 {[%clk 0:00:25]} 28. Qxc6 {[%clk 0:00:30]}  Qxd4+ {[%clk 0:00:24]} 29. Kh1 {[%clk 0:00:31]}  Rf8 {[%clk 0:00:20]} 30. Rg1 {[%clk 0:00:28]}  Nf6 {[%clk 0:00:14]} 31. Nxb6 {[%clk 0:00:23]}  Ng4 {[%clk 0:00:12]} 32. h3 {[%clk 0:00:20]}  Nf2+ {[%clk 0:00:09]} 33. Kh2 {[%clk 0:00:20]}  Qf4+ {[%clk 0:00:04]} 34. g3 {[%clk 0:00:20]}  Qd2 {[%clk 0:00:03]} 35. Qd7+ {[%clk 0:00:20]}  Qxd7 {[%clk 0:00:04]} 36. Nxd7 {[%clk 0:00:21]}  Rd8 {[%clk 0:00:03]} 37. Nc5 {[%clk 0:00:19]}  Rd2 {[%clk 0:00:03]} 38. Rg2 {[%clk 0:00:18]}  Rxb2 {[%clk 0:00:02]} 39. Ne4 {[%clk 0:00:18]}  Nd1 {[%clk 0:00:02]} 40. Rxb2 {[%clk 0:00:17]}  Nxb2 {[%clk 0:00:02]} 41. g4 {[%clk 0:00:18]}  Nd3 {[%clk 0:00:02]} 42. Kg3 {[%clk 0:00:18]}  Kf7 {[%clk 0:00:02]} 43. h4 {[%clk 0:00:18]}  Kg7 {[%clk 0:00:03]} 44. Ng5 {[%clk 0:00:18]}  Nc5 {[%clk 0:00:03]} 45. Nf3 {[%clk 0:00:18]}  Kf6 {[%clk 0:00:03]} 46. Kf4 {[%clk 0:00:18]}  Ne6+ {[%clk 0:00:03]} 47. Ke4 {[%clk 0:00:17]}  h6 {[%clk 0:00:04]} 48. Nd2 {[%clk 0:00:14]}  Nc5+ {[%clk 0:00:04]} 49. Kf4 {[%clk 0:00:14]}  Ne6+ {[%clk 0:00:05]} 50. Kg3 {[%clk 0:00:14]}  Ke5 {[%clk 0:00:05]} 51. Nf3+ {[%clk 0:00:14]}  Kf6 {[%clk 0:00:05]} 52. Nd2 {[%clk 0:00:11]}  Ke5 {[%clk 0:00:05]} 53. Nf3+ {[%clk 0:00:11]}  Ke4 {[%clk 0:00:05]} 54. Nd2+ {[%clk 0:00:10]}  Ke5 {[%clk 0:00:05]} 1/2-1/2


[Site "https://www.chess.com"]

[Event "Titled Tuesday Blitz December 20 Early 2022"]
[White "Artem_0degov"]
[Black "Luks, Artur"]
[BlackFideId "21808856"]
[WhiteElo "2661"]
[BlackElo "1577"]
[Result "1-0"]
[Round "07"]
[TimeControl "180+2"]
[Date "2022.12.20"]
[WhiteClock "0:00:52"]
[BlackClock "0:00:01"]

1. d4 {[%clk 0:03:00]}  d5 {[%clk 0:02:59]} 2. c4 {[%clk 0:03:01]}  c6 {[%clk 0:02:59]} 3. Nc3 {[%clk 0:03:02]}  Nf6 {[%clk 0:03:00]} 4. Nf3 {[%clk 0:03:02]}  dxc4 {[%clk 0:03:00]} 5. a4 {[%clk 0:03:02]}  Bf5 {[%clk 0:03:00]} 6. Ne5 {[%clk 0:03:02]}  Na6 {[%clk 0:03:00]} 7. e3 {[%clk 0:02:58]}  Nb4 {[%clk 0:03:00]} 8. Bxc4 {[%clk 0:02:59]}  e6 {[%clk 0:03:00]} 9. O-O {[%clk 0:02:59]}  Bd6 {[%clk 0:03:01]} 10. a5 {[%clk 0:02:56]}  Bxe5 {[%clk 0:02:51]} 11. dxe5 {[%clk 0:02:57]}  Qxd1 {[%clk 0:02:51]} 12. Rxd1 {[%clk 0:02:56]}  Nd7 {[%clk 0:02:51]} 13. f4 {[%clk 0:02:53]}  O-O-O {[%clk 0:02:31]} 14. e4 {[%clk 0:02:37]}  Bg6 {[%clk 0:02:31]} 15. Ra4 {[%clk 0:02:13]}  c5 {[%clk 0:01:34]} 16. Be3 {[%clk 0:02:08]}  Nc2 {[%clk 0:01:18]} 17. Bf2 {[%clk 0:02:07]}  Nd4 {[%clk 0:00:57]} 18. Nb5 {[%clk 0:01:48]}  Nxb5 {[%clk 0:00:51]} 19. Bxb5 {[%clk 0:01:49]}  a6 {[%clk 0:00:41]} 20. Bf1 {[%clk 0:01:45]}  Kc7 {[%clk 0:00:38]} 21. Rd6 {[%clk 0:01:40]}  Rhe8 {[%clk 0:00:10]} 22. Rc4 {[%clk 0:01:38]}  Kb8 {[%clk 0:00:09]} 23. b4 {[%clk 0:01:35]}  cxb4 {[%clk 0:00:07]} 24. Rxb4 {[%clk 0:01:36]}  Kc7 {[%clk 0:00:04]} 25. Bd3 {[%clk 0:01:09]}  f6 {[%clk 0:00:04]} 26. Bd4 {[%clk 0:00:53]}  fxe5 {[%clk 0:00:03]} 27. fxe5 {[%clk 0:00:54]}  Kc8 {[%clk 0:00:02]} 28. Bxa6 {[%clk 0:00:51]}  bxa6 {[%clk 0:00:01]} 29. Rc6# {[%clk 0:00:52]} 1-0


[Site "https://www.chess.com"]